[Event "22nd Ruzomberok Open 2019"]
[Site "Ruzomberok"]
[Date "2019.07.02"]
[Round "4.28"]
[White "Gasper, Jaroslav"]
[Black "Cernekova, Martina"]
[Result "0-1"]
[ECO "A56"]
[WhiteElo "1772"]
[BlackElo "1659"]
[Annotator "NA"]
[PlyCount "130"]
[EventDate "2019.06.29"]
[EventType "swiss"]
[EventCountry "SVK"]
[SourceTitle "playchess.com"]
[Source "ChessBase"]
[SourceQuality "1"]
[TimeControl "40/5400+30:1800+30"]

1. d4 {[%emt 0:06:21]} Nf6 {[%emt 0:00:00]} 2. c4 {[%emt 0:00:10]} c5 {[%emt 0:00:00]} 3. Nf3 {[%emt 0:00:40]} e6 {[%emt 0:00:07]} 4. Nc3 {[%emt 0:00:23]} d5 {[%emt 0:00:16]} 5. e3 {[%emt 0:01:02]} Nc6 {[%emt 0:00:30]} 6. cxd5 {[%emt 0:01:01]} Nxd5 {[%emt 0:00:24]} 7. Bb5 {[%emt 0:00:25]} a6 {[%emt 0:00:47]} 8. Bxc6+ {[%emt 0:00:48]} bxc6 {[%emt 0:00:09]} 9. O-O {[%emt 0:00:36]} Bd6 {[%emt 0:02:18]} 10. e4 {[%emt 0:01:58]} Nxc3 {[%emt 0:00:28]} 11. bxc3 {[%emt 0:00:19]} O-O {[%emt 0:00:16]} 12. e5 {[%emt 0:00:30]} Be7 {[%emt 0:00:19]} 13. Be3 {[%emt 0:01:20]} c4 {[%emt 0:00:41]} 14. Qe2 {[%emt 0:00:59]} a5 {[%emt 0:00:27]} 15. Nd2 {[%emt 0:03:33]} Ba6 {[%emt 0:00:44]} 16. f4 {[%emt 0:00:38]} Qd5 {[%emt 0:00:53]} 17. f5 {[%emt 0:01:40]} exf5 {[%emt 0:00:47]} 18. Rxf5 {[%emt 0:01:23]} f6 {[%emt 0:00:57]} 19. Raf1 {[%emt 0:01:13]} fxe5 {[%emt 0:00:54]} 20. Rxe5 {[%emt 0:00:55]} Rxf1+ {[%emt 0:01:29]} 21. Nxf1 {[%emt 0:00:42]} Qf7 {[%emt 0:02:06]} 22. Bd2 {[%emt 0:06:13]} Bf6 {[%emt 0:02:21]} 23. Rxa5 {[%emt 0:02:55]} Re8 {[%emt 0:01:56]} 24. Qf3 {[%emt 0:02:44]} Bb5 {[%emt 0:04:15]} 25. a4 {[%emt 0:10:16]} Qc7 {[%emt 0:00:48]} 26. axb5 {[%emt 0:00:03]} Qxa5 {[%emt 0:00:21]} 27. Qxc6 {[%emt 0:00:38]} Rb8 {[%emt 0:05:53]} 28. Bf4 Qxb5 {[%emt 0:06:16]} 29. Qe6+ {[%emt 0:10:30]} Kh8 {[%emt 0:00:35]} 30. Bxb8 {[%emt 0:00:08]} Qxb8 {[%emt 0:00:09]} 31. Qxc4 {[%emt 0:00:06]} h6 {[%emt 0:00:24]} 32. Qd3 {[%emt 0:01:20]} Qb2 {[%emt 0:01:13]} 33. h3 {[%emt 0:03:27]} Bh4 {[%emt 0:01:29]} 34. Qe3 {[%emt 0:03:32]} Bg5 {[%emt 0:00:58]} 35. Qe8+ {[%emt 0:00:17]} Kh7 {[%emt 0:00:13]} 36. Qe4+ {[%emt 0:00:07]} Kh8 {[%emt 0:00:08]} 37. c4 {[%emt 0:00:43]} Bf6 {[%emt 0:00:56]} 38. d5 {[%emt 0:00:22]} Bd4+ {[%emt 0:00:30]} 39. Kh2 {[%emt 0:05:54]} Qf2 {[%emt 0:01:19]} 40. Qf3 {[%emt 0:04:56]} Qg1+ {[%emt 0:01:18]} 41. Kg3 {[%emt 0:35:17]} Be5+ {[%emt 0:30:10]} 42. Kh4 {[%emt 0:00:53]} Qd4+ {[%emt 0:00:28]} 43. Kh5 {[%emt 0:03:34]} Bf6 {[%emt 0:02:04]} 44. Ne3 {[%emt 0:17:15]} Qe5+ {[%emt 0:05:13]} 45. Nf5 {[%emt 0:00:00]} Kh7 {[%emt 0:00:00]} 46. Kg4 {[%emt 0:00:00]} g6 {[%emt 0:00:00]} 47. Qf4 {[%emt 0:00:00]} Qe2+ {[%emt 0:00:00]} 48. Qf3 {[%emt 0:00:00]} h5+ {[%emt 0:00:00]} 49. Kg3 {[%emt 0:00:00]} Qe1+ {[%emt 0:00:00]} 50. Kh2 {[%emt 0:00:00]} h4 {[%emt 0:00:00]} 51. Nxh4 {[%emt 0:00:00]} Qxh4 {[%emt 0:00:00]} 52. d6 {[%emt 0:00:00]} Be5+ {[%emt 0:00:00]} 53. g3 {[%emt 0:00:00]} Qxc4 {[%emt 0:00:00]} 54. Qb7+ {[%emt 0:00:00]} Kh6 {[%emt 0:00:00]} 55. d7 {[%emt 0:00:00]} Qe2+ 56. Kh1 Bxg3 {[%emt 0:00:00]} 57. Qg2 {[%emt 0:00:00]} Qxg2+ {[%emt 0:00:00]} 58. Kxg2 {[%emt 0:00:00]} Bc7 {[%emt 0:00:00]} 59. Kf3 {[%emt 0:00:00]} Kh5 {[%emt 0:00:00]} 60. Kf2 {[%emt 0:00:00]} Kh4 {[%emt 0:00:00]} 61. Kg2 {[%emt 0:00:00]} g5 {[%emt 0:00:00]} 62. Kh1 {[%emt 0:00:36]} Kxh3 {[%emt 0:00:00]} 63. Kg1 {[%emt 0:00:17]} g4 {[%emt 0:00:00]} 64. Kh1 {[%emt 0:00:07]} g3 {[%emt 0:00:00]} 65. Kg1 {[%emt 0:00:23]} g2 {[%emt 0:00:00]} 0-1

[Event "22nd Ruzomberok Open 2019"]
[Site "Ruzomberok"]
[Date "2019.07.02"]
[Round "4.30"]
[White "Polko, Pavol"]
[Black "Mudron, Jan"]
[Result "1/2-1/2"]
[ECO "A00"]
[WhiteElo "1638"]
[BlackElo "1756"]
[Annotator "NA"]
[PlyCount "144"]
[EventDate "2019.06.29"]
[EventType "swiss"]
[EventCountry "SVK"]
[SourceTitle "playchess.com"]
[Source "ChessBase"]
[SourceQuality "1"]
[TimeControl "40/5400+30:1800+30"]

1. h4 {[%emt 0:00:00]} Nf6 {[%emt 0:00:36]} 2. d4 {[%emt 0:00:00]} e6 {[%emt 0:02:44]} 3. Nf3 {[%emt 0:00:00]} c5 {[%emt 0:00:24]} 4. Bg5 {[%emt 0:00:21]} Be7 {[%emt 0:00:28]} 5. e3 {[%emt 0:01:12]} cxd4 {[%emt 0:01:49]} 6. exd4 {[%emt 0:00:38]} O-O {[%emt 0:00:21]} 7. Bd3 {[%emt 0:00:31]} d5 {[%emt 0:00:37]} 8. c3 {[%emt 0:00:47]} b6 {[%emt 0:00:17]} 9. Qc2 {[%emt 0:00:31]} h6 {[%emt 0:00:29]} 10. Bxf6 {[%emt 0:00:14]} Bxf6 {[%emt 0:00:06]} 11. Bh7+ {[%emt 0:00:39]} Kh8 {[%emt 0:00:07]} 12. Bd3 {[%emt 0:00:47]} Ba6 {[%emt 0:02:48]} 13. g4 {[%emt 0:00:38]} Bxd3 {[%emt 0:00:20]} 14. Qxd3 {[%emt 0:00:13]} g5 {[%emt 0:13:59]} 15. hxg5 {[%emt 0:00:08]} Bxg5 {[%emt 0:00:05]} 16. Nbd2 {[%emt 0:00:10]} Kg7 {[%emt 0:02:24]} 17. O-O-O {[%emt 0:00:25]} Nd7 {[%emt 0:07:13]} 18. Kb1 {[%emt 0:02:15]} Rh8 {[%emt 0:02:39]} 19. Rdg1 {[%emt 0:01:57]} Qf6 {[%emt 0:05:26]} 20. Qe2 {[%emt 0:03:06]} Qf4 {[%emt 0:03:25]} 21. Nxg5 {[%emt 0:04:26]} hxg5 {[%emt 0:00:25]} 22. Rh5 {[%emt 0:00:02]} Nf6 {[%emt 0:04:36]} 23. Rxh8 {[%emt 0:04:59]} Rxh8 {[%emt 0:00:02]} 24. f3 {[%emt 0:00:25]} Rh2 {[%emt 0:05:34]} 25. Rg2 {[%emt 0:00:02]} Rh3 {[%emt 0:08:26]} 26. a4 {[%emt 0:01:03]} Nd7 {[%emt 0:03:44]} 27. Qb5 {[%emt 0:06:03]} Qc7 {[%emt 0:00:17]} 28. Re2 {[%emt 0:01:39]} Kg6 {[%emt 0:09:50]} 29. Qd3+ {[%emt 0:00:35]} Kg7 {[%emt 0:00:14]} 30. Qe3 {[%emt 0:00:35]} Qf4 {[%emt 0:00:23]} 31. b4 {[%emt 0:06:35]} Qxe3 {[%emt 0:02:00]} 32. Rxe3 {[%emt 0:00:04]} Kg6 {[%emt 0:03:18]} 33. Re2 {[%emt 0:00:03]} Kg7 {[%emt 0:02:18]} 34. Kb2 {[%emt 0:00:18]} Kf8 {[%emt 0:00:59]} 35. b5 {[%emt 0:00:37]} Ke7 {[%emt 0:00:39]} 36. Ka3 {[%emt 0:01:35]} Kd6 {[%emt 0:00:07]} 37. Kb4 {[%emt 0:02:05]} f6 {[%emt 0:08:56]} 38. a5 {[%emt 0:00:31]} e5 {[%emt 0:00:59]} 39. axb6 {[%emt 0:00:51]} axb6 {[%emt 0:00:02]} 40. Rf2 {[%emt 0:02:11]} Ke6 {[%emt 0:09:03]} 41. Nf1 {[%emt 0:31:14]} Rh1 {[%emt 0:31:45]} 42. Kb3 {[%emt 0:01:07]} Rh3 {[%emt 0:00:00]} 43. Ne3 {[%emt 0:00:00]} e4 {[%emt 0:00:00]} 44. c4 {[%emt 0:00:00]} dxc4+ {[%emt 0:00:00]} 45. Kxc4 {[%emt 0:00:00]} Rxf3 {[%emt 0:00:00]} 46. Rxf3 {[%emt 0:00:00]} exf3 {[%emt 0:00:00]} 47. Kd3 {[%emt 0:00:00]} Nf8 {[%emt 0:00:00]} 48. Ke4 {[%emt 0:00:00]} f2 {[%emt 0:00:00]} 49. Kd3 {[%emt 0:00:00]} Ng6 {[%emt 0:00:00]} 50. Ke2 {[%emt 0:00:00]} Nf4+ {[%emt 0:00:00]} 51. Kxf2 {[%emt 0:00:00]} Nd5 {[%emt 0:00:00]} 52. Nc4 {[%emt 0:00:00]} f5 {[%emt 0:00:00]} 53. Kg3 {[%emt 0:00:00]} f4+ {[%emt 0:00:00]} 54. Kf3 {[%emt 0:00:00]} Nc3 {[%emt 0:00:00]} 55. Nxb6 {[%emt 0:00:00]} Nxb5 {[%emt 0:00:00]} 56. d5+ {[%emt 0:00:00]} Ke5 {[%emt 0:00:00]} 57. d6 {[%emt 0:00:00]} Nxd6 {[%emt 0:00:00]} 58. Nd7+ {[%emt 0:00:00]} Kd4 {[%emt 0:00:00]} 59. Nf8 {[%emt 0:00:00]} Nf7 {[%emt 0:00:00]} 60. Ne6+ {[%emt 0:00:00]} Ke5 {[%emt 0:00:00]} 61. Nf8 {[%emt 0:00:00]} Kf6 {[%emt 0:00:00]} 62. Nh7+ {[%emt 0:00:00]} Ke5 {[%emt 0:00:15]} 63. Nf8 {[%emt 0:00:00]} Kd5 {[%emt 0:00:44]} 64. Nh7 {[%emt 0:00:00]} Ne5+ {[%emt 0:01:39]} 65. Kg2 {[%emt 0:00:00]} Nf7 {[%emt 0:01:43]} 66. Nf6+ {[%emt 0:00:24]} Ke6 {[%emt 0:00:47]} 67. Ne4 {[%emt 0:00:37]} Ke5 {[%emt 0:00:43]} 68. Kf3 {[%emt 0:00:19]} Ke6 {[%emt 0:04:00]} 69. Nxg5+ {[%emt 0:00:13]} Nxg5+ {[%emt 0:00:01]} 70. Kxf4 {[%emt 0:00:02]} Kf6 {[%emt 0:00:31]} 71. Kg3 {[%emt 0:00:58]} Nf7 {[%emt 0:00:16]} 72. Kh4 {[%emt 0:00:07]} Kg6 {[%emt 0:00:06]} 1/2-1/2

[Event "22nd Ruzomberok Open 2019"]
[Site "Ruzomberok"]
[Date "2019.07.02"]
[Round "4.32"]
[White "Cebo, Vladimir"]
[Black "Zentko, Ladislav"]
[Result "0-1"]
[ECO "A34"]
[WhiteElo "1577"]
[BlackElo "1732"]
[Annotator "NA"]
[PlyCount "56"]
[EventDate "2019.06.29"]
[EventType "swiss"]
[EventCountry "SVK"]
[SourceTitle "playchess.com"]
[Source "ChessBase"]
[SourceQuality "1"]
[TimeControl "40/5400+30:1800+30"]

1. c4 {[%emt 0:00:00]} c5 {[%emt 0:00:00]} 2. Nc3 {[%emt 0:00:08]} Nf6 {[%emt 0:00:40]} 3. Nf3 {[%emt 0:00:18]} e6 {[%emt 0:00:20]} 4. e3 {[%emt 0:00:10]} d5 {[%emt 0:00:29]} 5. d4 {[%emt 0:01:58]} cxd4 {[%emt 0:02:00]} 6. Qxd4 {[%emt 0:03:47]} Nc6 {[%emt 0:00:44]} 7. Qd1 {[%emt 0:00:21]} Bb4 {[%emt 0:01:49]} 8. Bd2 {[%emt 0:00:51]} O-O {[%emt 0:00:40]} 9. Be2 {[%emt 0:00:31]} Ne4 {[%emt 0:08:58]} 10. a3 {[%emt 0:22:36]} Bxc3 {[%emt 0:05:30]} 11. Bxc3 {[%emt 0:01:20]} Nxc3 {[%emt 0:00:10]} 12. bxc3 {[%emt 0:00:06]} Qa5 {[%emt 0:01:38]} 13. Qc2 {[%emt 0:00:25]} dxc4 {[%emt 0:00:50]} 14. Bxc4 {[%emt 0:01:12]} b6 {[%emt 0:02:04]} 15. O-O {[%emt 0:00:37]} Bb7 {[%emt 0:00:48]} 16. Bd3 {[%emt 0:02:51]} g6 {[%emt 0:02:19]} 17. Nd4 {[%emt 0:02:51]} Ne5 {[%emt 0:04:19]} 18. Be2 {[%emt 0:04:03]} Rac8 {[%emt 0:01:39]} 19. Rfc1 {[%emt 0:01:29]} Rfd8 {[%emt 0:04:17]} 20. f4 {[%emt 0:04:24]} Nc4 {[%emt 0:10:13]} 21. Kf2 {[%emt 0:03:45]} Nxe3 {[%emt 0:07:29]} 22. Kxe3 {[%emt 0:02:36]} Rxd4 {[%emt 0:03:07]} 23. Bd3 {[%emt 0:09:05]} Ra4 {[%emt 0:02:46]} 24. g3 {[%emt 0:06:03]} Rxa3 {[%emt 0:01:30]} 25. Qb2 {[%emt 0:00:57]} Qc5+ {[%emt 0:02:29]} 26. Ke2 {[%emt 0:00:49]} Rxa1 {[%emt 0:01:29]} 27. Qxa1 {[%emt 0:00:35]} a5 {[%emt 0:03:01]} 28. c4 {[%emt 0:02:11]} Qh5+ {[%emt 0:01:52]} 0-1

[Event "22nd Ruzomberok Open 2019"]
[Site "Ruzomberok"]
[Date "2019.07.02"]
[Round "4.33"]
[White "Mikulec, Martin"]
[Black "Petrasko, Jozef"]
[Result "1-0"]
[ECO "B13"]
[WhiteElo "1875"]
[BlackElo "1455"]
[Annotator "NA"]
[PlyCount "127"]
[EventDate "2019.06.29"]
[EventType "swiss"]
[EventCountry "SVK"]
[SourceTitle "playchess.com"]
[Source "ChessBase"]
[SourceQuality "1"]
[TimeControl "40/5400+30:1800+30"]

1. e4 c6 2. d4 d5 3. exd5 cxd5 4. c4 Nf6 5. Nc3 Nc6 6. cxd5 Nxd5 7. Bb5 e6 8. Nf3 Bd6 9. O-O O-O 10. Re1 Bd7 11. a3 a6 12. Bc4 Rc8 13. Bxd5 exd5 14. Nxd5 h6 15. Ne3 Ne7 16. Bd2 Nf5 17. Bc3 Nxe3 18. Rxe3 Re8 19. Qd2 Qc7 20. Rae1 Bf4 21. Rxe8+ Rxe8 22. Rxe8+ Bxe8 23. Qd3 Bb5 24. Qe4 Qc4 25. Qe1 Qe2 26. Qxe2 Bxe2 27. Ne1 Bc1 28. g3 f6 29. f4 Kf7 30. Kf2 Bc4 31. Nc2 Ke6 32. Nb4 a5 33. d5+ Kd6 34. Nc2 Kxd5 35. Bxa5 Bxb2 36. Ne3+ Kd4 37. Nf5+ Kd5 38. Bb4 b5 39. Nxg7 Ke4 40. Ne8 Bd4+ 41. Kg2 f5 42. Nd6+ Ke3 43. Nxf5+ Ke4 44. Nxd4 Kxd4 45. Kf3 h5 46. f5 Ke5 47. g4 h4 48. Bc3+ Kd6 49. h3 Bf1 50. Bf6 Bxh3 51. Bxh4 Ke5 52. Bg3+ Kf6 53. Kf4 Bg2 54. Bh4+ Kg7 55. Bf2 Kf7 56. g5 Bd5 57. g6+ Kg8 58. Ke5 Bb3 59. Kf4 Bc2 60. Kg5 Kg7 61. f6+ Kg8 62. f7+ Kg7 63. Bd4+ Kf8 64. Bc5+ 1-0

[Event "22nd Ruzomberok Open 2019"]
[Site "Ruzomberok"]
[Date "2019.07.02"]
[Round "4.36"]
[White "Zilkay, Dominik"]
[Black "Kunzo, Slavomir"]
[Result "1-0"]
[ECO "B22"]
[WhiteElo "1328"]
[BlackElo "1593"]
[Annotator "NA"]
[PlyCount "101"]
[EventDate "2019.06.29"]
[EventType "swiss"]
[EventCountry "SVK"]
[SourceTitle "playchess.com"]
[Source "ChessBase"]
[SourceQuality "1"]
[TimeControl "40/5400+30:1800+30"]

1. e4 {[%emt 0:00:00]} c5 {[%emt 0:03:31]} 2. c3 {[%emt 0:00:00]} d5 {[%emt 0:01:17]} 3. exd5 {[%emt 0:00:00]} Qxd5 {[%emt 0:00:31]} 4. d4 {[%emt 0:00:00]} e5 {[%emt 0:01:58]} 5. dxe5 {[%emt 0:06:56]} Qxe5+ {[%emt 0:01:22]} 6. Be2 {[%emt 0:03:16]} Bg4 {[%emt 0:04:55]} 7. Nd2 {[%emt 0:00:14]} Bxe2 {[%emt 0:01:16]} 8. Qxe2 {[%emt 0:00:56]} Nc6 {[%emt 0:01:10]} 9. Ngf3 {[%emt 0:00:50]} Qxe2+ {[%emt 0:02:04]} 10. Kxe2 {[%emt 0:00:02]} O-O-O {[%emt 0:01:30]} 11. Re1 {[%emt 0:00:59]} Re8+ {[%emt 0:01:42]} 12. Kd1 {[%emt 0:00:03]} Rxe1+ {[%emt 0:00:50]} 13. Kxe1 {[%emt 0:00:25]} f5 {[%emt 0:01:16]} 14. Nc4 {[%emt 0:00:42]} Nf6 {[%emt 0:02:46]} 15. Bf4 {[%emt 0:02:15]} Nd5 {[%emt 0:01:03]} 16. Bd2 {[%emt 0:01:19]} Be7 {[%emt 0:04:09]} 17. g3 {[%emt 0:04:38]} Re8 {[%emt 0:00:50]} 18. Ne3 {[%emt 0:00:12]} Bf6 {[%emt 0:02:22]} 19. Kf1 {[%emt 0:00:35]} Nxe3+ {[%emt 0:03:16]} 20. Bxe3 {[%emt 0:00:04]} b6 {[%emt 0:01:03]} 21. Rd1 {[%emt 0:06:42]} h6 {[%emt 0:02:28]} 22. h4 {[%emt 0:00:39]} Na5 {[%emt 0:01:34]} 23. Nd2 {[%emt 0:04:44]} g5 {[%emt 0:03:08]} 24. hxg5 {[%emt 0:00:35]} hxg5 {[%emt 0:00:38]} 25. b4 {[%emt 0:02:02]} cxb4 {[%emt 0:00:42]} 26. cxb4 {[%emt 0:00:13]} Nc6 {[%emt 0:03:27]} 27. Nc4 {[%emt 0:03:04]} Rd8 {[%emt 0:16:22]} 28. Rxd8+ {[%emt 0:01:26]} Kxd8 {[%emt 0:00:18]} 29. b5 {[%emt 0:00:39]} Nb4 {[%emt 0:00:38]} 30. a4 {[%emt 0:01:49]} Na2 {[%emt 0:00:49]} 31. a5 {[%emt 0:00:57]} Nc3 {[%emt 0:05:09]} 32. axb6 {[%emt 0:00:12]} axb6 {[%emt 0:00:10]} 33. Nxb6 {[%emt 0:00:59]} Kc7 {[%emt 0:01:19]} 34. Nc4 {[%emt 0:02:19]} Nxb5 {[%emt 0:00:40]} 35. Nd2 {[%emt 0:00:01]} Kc6 {[%emt 0:01:22]} 36. Nf3 {[%emt 0:00:40]} g4 {[%emt 0:00:54]} 37. Nh4 {[%emt 0:00:02]} Bxh4 {[%emt 0:01:09]} 38. gxh4 {[%emt 0:00:00]} Kd5 {[%emt 0:07:06]} 39. Kg2 {[%emt 0:01:16]} Ke4 {[%emt 0:00:48]} 40. Kg3 {[%emt 0:00:29]} Nc3 {[%emt 0:01:24]} 41. h5 {[%emt 0:39:33]} Nd5 {[%emt 0:31:06]} 42. Bg5 {[%emt 0:05:12]} Nc3 {[%emt 0:06:43]} 43. h6 {[%emt 0:01:14]} Ne2+ {[%emt 0:00:49]} 44. Kg2 {[%emt 0:00:39]} f4 {[%emt 0:02:25]} 45. h7 {[%emt 0:00:44]} g3 {[%emt 0:00:51]} 46. fxg3 {[%emt 0:01:03]} f3+ {[%emt 0:00:34]} 47. Kf2 {[%emt 0:00:48]} Nc3 {[%emt 0:00:50]} 48. h8=Q {[%emt 0:01:16]} Nd1+ {[%emt 0:00:19]} 49. Kf1 {[%emt 0:00:04]} Ne3+ {[%emt 0:00:24]} 50. Bxe3 {[%emt 0:00:02]} Kxe3 {[%emt 0:00:01]} 51. Qe5+ {[%emt 0:00:36]} 1-0

[Event "22nd Ruzomberok Open 2019"]
[Site "Ruzomberok"]
[Date "2019.07.02"]
[Round "4.37"]
[White "Majerova, Veronika"]
[Black "Hajtmansky, Milan"]
[Result "1-0"]
[ECO "A40"]
[WhiteElo "1531"]
[BlackElo "1521"]
[Annotator "NA"]
[PlyCount "71"]
[EventDate "2019.06.29"]
[EventType "swiss"]
[EventCountry "SVK"]
[SourceTitle "playchess.com"]
[Source "ChessBase"]
[SourceQuality "1"]
[TimeControl "40/5400+30:1800+30"]

1. d4 {[%emt 0:00:00]} e6 {[%emt 0:00:00]} 2. Nf3 {[%emt 0:00:00]} b6 {[%emt 0:00:44]} 3. Bf4 {[%emt 0:00:00]} Bb7 {[%emt 0:00:16]} 4. e3 {[%emt 0:00:02]} Nc6 {[%emt 0:00:34]} 5. c3 {[%emt 0:00:25]} Be7 {[%emt 0:00:50]} 6. Bd3 {[%emt 0:00:32]} Nf6 {[%emt 0:00:11]} 7. h3 {[%emt 0:00:21]} O-O {[%emt 0:00:25]} 8. Nbd2 {[%emt 0:00:20]} d6 {[%emt 0:01:14]} 9. O-O {[%emt 0:00:20]} g6 {[%emt 0:01:01]} 10. e4 {[%emt 0:01:09]} Nd7 {[%emt 0:02:27]} 11. Re1 {[%emt 0:02:27]} e5 {[%emt 0:01:08]} 12. Be3 {[%emt 0:04:31]} Bf6 {[%emt 0:00:53]} 13. Qe2 {[%emt 0:06:54]} Re8 {[%emt 0:01:19]} 14. Rad1 {[%emt 0:02:26]} exd4 {[%emt 0:01:54]} 15. Nxd4 {[%emt 0:00:59]} Bxd4 {[%emt 0:03:19]} 16. Bxd4 {[%emt 0:01:21]} Nxd4 {[%emt 0:01:59]} 17. cxd4 {[%emt 0:00:51]} Qf6 {[%emt 0:00:57]} 18. Nf3 {[%emt 0:01:41]} Re7 {[%emt 0:03:04]} 19. Qc2 {[%emt 0:14:21]} c5 {[%emt 0:00:36]} 20. dxc5 {[%emt 0:01:59]} Nxc5 {[%emt 0:02:34]} 21. b4 {[%emt 0:08:04]} Ne6 {[%emt 0:02:58]} 22. Bc4 {[%emt 0:06:05]} Qf4 {[%emt 0:01:53]} 23. Bd5 {[%emt 0:05:07]} Rc7 {[%emt 0:06:02]} 24. Qb3 {[%emt 0:05:29]} Qf6 25. Bxb7 Rxb7 {[%emt 0:04:50]} 26. Rxd6 {[%emt 0:01:02]} Qe7 {[%emt 0:01:57]} 27. Red1 {[%emt 0:06:56]} Rd8 {[%emt 0:00:44]} 28. e5 {[%emt 0:01:54]} Rbd7 {[%emt 0:01:54]} 29. Qd5 {[%emt 0:04:21]} Rxd6 {[%emt 0:03:52]} 30. exd6 {[%emt 0:00:41]} Qd7 31. Ne5 Qe8 {[%emt 0:07:50]} 32. d7 {[%emt 0:02:13]} Qf8 {[%emt 0:00:16]} 33. Nc6 {[%emt 0:00:08]} h5 {[%emt 0:08:05]} 34. Nxd8 {[%emt 0:01:10]} Qxd8 {[%emt 0:01:00]} 35. Rc1 {[%emt 0:03:17]} Nf4 {[%emt 0:00:46]} 36. Rc8 {[%emt 0:02:34]} 1-0

[Event "22nd Ruzomberok Open 2019"]
[Site "Ruzomberok"]
[Date "2019.07.02"]
[Round "4.38"]
[White "Kukan, Michal"]
[Black "Horbal, Michal"]
[Result "1-0"]
[ECO "A10"]
[WhiteElo "1698"]
[BlackElo "1121"]
[Annotator "NA"]
[PlyCount "113"]
[EventDate "2019.06.29"]
[EventType "swiss"]
[EventCountry "SVK"]
[SourceTitle "playchess.com"]
[Source "ChessBase"]
[SourceQuality "1"]
[TimeControl "40/5400+30:1800+30"]

1. c4 {[%emt 0:00:00]} d6 {[%emt 0:00:00]} 2. Nc3 {[%emt 0:00:00]} e5 {[%emt 0:00:46]} 3. g3 {[%emt 0:00:04]} Be6 {[%emt 0:01:58]} 4. Bg2 {[%emt 0:00:46]} c6 {[%emt 0:00:49]} 5. b3 {[%emt 0:01:02]} Nf6 {[%emt 0:01:54]} 6. d4 {[%emt 0:01:05]} exd4 {[%emt 0:02:10]} 7. Qxd4 {[%emt 0:00:26]} d5 {[%emt 0:03:33]} 8. Bg5 {[%emt 0:05:02]} Be7 {[%emt 0:04:08]} 9. cxd5 {[%emt 0:01:35]} Bxd5 {[%emt 0:14:20]} 10. Nxd5 {[%emt 0:02:43]} cxd5 {[%emt 0:02:45]} 11. Nf3 {[%emt 0:08:03]} Nc6 {[%emt 0:02:26]} 12. Qa4 {[%emt 0:02:46]} O-O {[%emt 0:03:56]} 13. O-O {[%emt 0:00:45]} Ne4 {[%emt 0:14:42]} 14. Bxe7 {[%emt 0:05:40]} Qxe7 {[%emt 0:02:01]} 15. Rac1 {[%emt 0:02:07]} Rfd8 {[%emt 0:03:12]} 16. Rfd1 {[%emt 0:01:35]} Rac8 {[%emt 0:04:37]} 17. e3 {[%emt 0:04:58]} a6 {[%emt 0:04:41]} 18. Nd4 {[%emt 0:02:21]} Ne5 {[%emt 0:01:51]} 19. Nf5 {[%emt 0:12:27]} Qe6 {[%emt 0:05:12]} 20. Rxc8 {[%emt 0:02:38]} Rxc8 {[%emt 0:02:30]} 21. Bxe4 {[%emt 0:01:18]} dxe4 {[%emt 0:02:48]} 22. Qxe4 {[%emt 0:01:08]} g6 {[%emt 0:02:11]} 23. Nd4 {[%emt 0:01:35]} Qe7 {[%emt 0:02:02]} 24. Kg2 {[%emt 0:02:37]} f5 {[%emt 0:03:08]} 25. Qd5+ {[%emt 0:00:56]} Kh8 {[%emt 0:03:02]} 26. Ne6 {[%emt 0:01:51]} Nc6 {[%emt 0:04:07]} 27. h4 {[%emt 0:01:15]} Nb4 {[%emt 0:01:07]} 28. Qd8+ {[%emt 0:15:29]} Rxd8 {[%emt 0:01:10]} 29. Rxd8+ {[%emt 0:00:15]} Qxd8 {[%emt 0:00:19]} 30. Nxd8 {[%emt 0:00:15]} Nxa2 {[%emt 0:00:40]} 31. Nxb7 {[%emt 0:00:12]} Kg7 {[%emt 0:00:35]} 32. Nc5 {[%emt 0:00:37]} Nb4 {[%emt 0:01:56]} 33. Kf3 {[%emt 0:01:07]} Kf6 {[%emt 0:00:15]} 34. e4 {[%emt 0:03:53]} h5 {[%emt 0:02:05]} 35. Kf4 {[%emt 0:01:05]} a5 {[%emt 0:02:18]} 36. e5+ {[%emt 0:02:59]} Kf7 {[%emt 0:01:45]} 37. Ke3 {[%emt 0:01:58]} Nd5+ {[%emt 0:00:00]} 38. Kd4 {[%emt 0:00:00]} Nb4 {[%emt 0:00:00]} 39. f4 {[%emt 0:00:00]} Nc6+ {[%emt 0:00:00]} 40. Kc4 {[%emt 0:00:00]} Nb4 {[%emt 0:00:00]} 41. Kb5 {[%emt 0:02:27]} Nd5 {[%emt 0:02:36]} 42. Kxa5 {[%emt 0:00:16]} Ke7 {[%emt 0:08:53]} 43. b4 {[%emt 0:02:16]} Kd8 {[%emt 0:04:23]} 44. b5 {[%emt 0:01:01]} Kc7 {[%emt 0:00:15]} 45. Na6+ {[%emt 0:01:20]} Kb7 {[%emt 0:00:27]} 46. Nb4 {[%emt 0:00:32]} Nb6 {[%emt 0:00:53]} 47. Nc6 {[%emt 0:01:27]} Nc4+ {[%emt 0:01:29]} 48. Kb4 {[%emt 0:00:19]} Nb6 {[%emt 0:00:26]} 49. Kc5 {[%emt 0:00:38]} Nd7+ {[%emt 0:00:29]} 50. Kd6 {[%emt 0:00:18]} Kc8 {[%emt 0:02:05]} 51. Ne7+ {[%emt 0:00:56]} Kd8 {[%emt 0:00:45]} 52. Nxg6 {[%emt 0:01:09]} Nb6 {[%emt 0:00:48]} 53. e6 {[%emt 0:00:38]} Ke8 {[%emt 0:00:45]} 54. Kc6 {[%emt 0:00:32]} Nc4 {[%emt 0:02:06]} 55. b6 {[%emt 0:00:22]} Na5+ {[%emt 0:00:35]} 56. Kc7 Nc4 {[%emt 0:04:40]} 57. b7 {[%emt 0:00:01]} 1-0

[Event "22nd Ruzomberok Open 2019"]
[Site "Ruzomberok"]
[Date "2019.07.02"]
[Round "4.39"]
[White "Slyk, Piotr"]
[Black "Segeda, Milos"]
[Result "1-0"]
[ECO "C20"]
[WhiteElo "1082"]
[BlackElo "1446"]
[Annotator "NA"]
[PlyCount "75"]
[EventDate "2019.06.29"]
[EventType "swiss"]
[EventCountry "SVK"]
[SourceTitle "playchess.com"]
[Source "ChessBase"]
[SourceQuality "1"]
[TimeControl "40/5400+30:1800+30"]

1. e4 e5 2. d3 {[%emt 0:00:33]} Nc6 {[%emt 0:02:08]} 3. Nf3 {[%emt 0:00:15]} h6 {[%emt 0:01:36]} 4. g3 {[%emt 0:00:38]} Bc5 {[%emt 0:01:56]} 5. a3 {[%emt 0:00:42]} d6 {[%emt 0:00:51]} 6. Bg2 {[%emt 0:00:43]} Nf6 {[%emt 0:00:57]} 7. c3 {[%emt 0:00:28]} Bg4 {[%emt 0:00:44]} 8. Qd2 {[%emt 0:00:27]} Bxf3 {[%emt 0:01:53]} 9. Bxf3 {[%emt 0:00:07]} Qd7 {[%emt 0:02:21]} 10. Bg2 {[%emt 0:00:21]} Na5 {[%emt 0:01:40]} 11. Qc2 {[%emt 0:00:46]} Bb6 {[%emt 0:01:43]} 12. a4 {[%emt 0:00:48]} c5 {[%emt 0:02:59]} 13. Be3 {[%emt 0:00:33]} Qc7 {[%emt 0:01:12]} 14. O-O {[%emt 0:00:34]} O-O {[%emt 0:00:10]} 15. Qd2 {[%emt 0:00:51]} Ng4 {[%emt 0:01:05]} 16. Ra3 {[%emt 0:01:21]} Nxe3 {[%emt 0:00:17]} 17. Qxe3 {[%emt 0:00:06]} c4 {[%emt 0:01:12]} 18. Qe2 {[%emt 0:00:23]} Rac8 {[%emt 0:02:09]} 19. Nd2 {[%emt 0:00:28]} Bc5 {[%emt 0:01:27]} 20. Raa1 {[%emt 0:00:31]} Nb3 {[%emt 0:01:21]} 21. Nxb3 {[%emt 0:00:21]} cxb3 {[%emt 0:00:19]} 22. Qd2 {[%emt 0:01:01]} a5 {[%emt 0:00:48]} 23. c4 {[%emt 0:00:20]} Qb6 {[%emt 0:00:56]} 24. Bh3 {[%emt 0:01:38]} Rcd8 {[%emt 0:03:32]} 25. Bf5 {[%emt 0:00:38]} Bd4 {[%emt 0:01:43]} 26. Bg4 {[%emt 0:01:25]} Ra8 {[%emt 0:01:07]} 27. Bd7 {[%emt 0:00:23]} Bc5 {[%emt 0:00:57]} 28. Bb5 {[%emt 0:00:18]} Bb4 {[%emt 0:01:40]} 29. Qd1 {[%emt 0:00:08]} f5 {[%emt 0:03:33]} 30. Qxb3 {[%emt 0:00:55]} fxe4 {[%emt 0:00:23]} 31. c5+ {[%emt 0:00:15]} Kh7 {[%emt 0:00:50]} 32. cxb6 {[%emt 0:00:10]} Rxf2 {[%emt 0:00:35]} 33. Rxf2 {[%emt 0:00:11]} Bc5 {[%emt 0:00:09]} 34. Raf1 {[%emt 0:00:19]} Rf8 {[%emt 0:00:10]} 35. Qc2 {[%emt 0:00:24]} Bxb6 {[%emt 0:00:21]} 36. dxe4 {[%emt 0:00:30]} Bc5 {[%emt 0:01:04]} 37. Qxc5 {[%emt 0:00:36]} dxc5 {[%emt 0:01:11]} 38. Rxf8 {[%emt 0:00:18]} 1-0